[Event "43rd Indian-chT 2023-24"]
[Site "Dharamsala"]
[Date "2024.03.31"]
[Round "4.2"]
[White "Vignesh N R"]
[Black "Aronyak Ghosh"]
[Result "1/2-1/2"]
[ECO "D14"]
[WhiteElo "2525"]
[BlackElo "2517"]
[Annotator "TA"]
[PlyCount "61"]
[EventDate "2024.03.28"]
[EventType "team-tourn"]
[EventCountry "IND"]
[SourceTitle "playchess.com"]
[Source "ChessBase"]
[SourceQuality "1"]
[TimeControl "5400+30"]

{[%evp 24,61,0,0,0,0,0,0,0,0,0,0,0,0,0,0,0,0,0,0,0,0,0,0,0,0,0,0,0,0,0,0,0,0,6,0,0,0,0,-3]} 1. d4 {[%emt 0:00:03]} d5 {[%emt 0:00:04]} 2. c4 {[%emt 0:00:05]} c6 {[%emt 0:00:03]} 3. cxd5 {[%emt 0:00:05]} cxd5 {[%emt 0:00:03]} 4. Nc3 {[%emt 0:00:05]} Nc6 {[%emt 0:00:05]} 5. Nf3 {[%emt 0:00:04]} Nf6 {[%emt 0:00:06]} 6. Bf4 {[%emt 0:00:07]} Bf5 {[%emt 0:00:04]} 7. e3 {[%emt 0:00:04]} e6 {[%emt 0:00:04]} 8. Bd3 {[%emt 0:00:03]} Bxd3 {[%emt 0:00:03]} 9. Qxd3 {[%emt 0:00:05]} Bd6 {[%emt 0:00:05]} 10. Bxd6 {[%emt 0:00:04]} Qxd6 {[%emt 0:00:04]} 11. O-O {[%emt 0:00:05]} O-O {[%emt 0:00:04]} 12. Rfc1 {[%emt 0:00:04]} Rfc8 {[%emt 0:00:03]} 13. a3 {[%emt 0:00:14] The position is equal.} Ne7 {[%emt 0:00:13]} 14. Ne2 {[%emt 0:00:13]} a6 {[%emt 0:00:11]} 15. Ne5 {[%emt 0:00:15]} Nd7 {[%emt 0:00:28]} 16. Nxd7 {[%emt 0:00:07]} Qxd7 {[%emt 0:00:02]} 17. h3 {[%emt 0:00:13]} Rxc1+ {[%emt 0:00:04]} 18. Rxc1 {[%emt 0:00:03]} Rc8 {[%emt 0:00:05]} 19. Rxc8+ {[%emt 0:00:05]} Qxc8 {[%emt 0:00:01]} 20. Qc3 {[%emt 0:00:06]} Qxc3 {[%emt 0:00:03]} 21. Nxc3 $11 {[%emt 0:00:05][%mdl 4096] Endgame. KN-KN} Nf5 {[%emt 0:00:06]} 22. Kf1 {[%emt 0:00:07]} Kf8 {[%emt 0:00:03]} 23. Ke2 {[%emt 0:00:05]} Ke7 {[%emt 0:00:02]} 24. Kd3 {[%emt 0:00:10]} Nd6 {[%emt 0:00:03]} 25. b3 {[%emt 0:00:12]} Kd7 {[%emt 0:00:05]} 26. Kd2 {[%emt 0:00:07]} Kc7 {[%emt 0:00:04]} 27. Kc2 {[%emt 0:00:04]} Kc8 {[%emt 0:00:04]} 28. Kd3 {[%emt 0:00:04]} Kd8 {[%emt 0:00:02]} 29. Kc2 {[%emt 0:00:05]} Kd7 {[%emt 0:00:03]} 30. Kd3 {[%emt 0:00:03]} Kc6 {[%emt 0:00:11]} 31. Kc2 {[%emt 0:00:01] A rather calm draw.   Weighted Error Value: White=0.00 (flawless) /Black=0.00 (flawless) .  OK:         	White=5     	Black=7} 1/2-1/2

[Event "43rd Indian-chT 2023-24"]
[Site "Dharamsala"]
[Date "2024.03.31"]
[Round "4.4"]
[White "Swapnil, S. Dhopade"]
[Black "Neelash Saha"]
[Result "1/2-1/2"]
[ECO "E05"]
[WhiteElo "2454"]
[BlackElo "2463"]
[Annotator "TA"]
[PlyCount "28"]
[EventDate "2024.03.28"]
[EventType "team-tourn"]
[EventCountry "IND"]
[SourceTitle "playchess.com"]
[Source "ChessBase"]
[SourceQuality "1"]
[TimeControl "5400+30"]

{[%evp 23,28,0,0,0,18,0,0]} 1. d4 {[%emt 0:00:06]} Nf6 {[%emt 0:00:09]} 2. c4 {[%emt 0:00:13]} e6 {[%emt 0:00:04]} 3. Nf3 {[%emt 0:00:08]} d5 {[%emt 0:00:06]} 4. g3 {[%emt 0:00:15]} Be7 {[%emt 0:00:06]} 5. Bg2 {[%emt 0:00:07]} O-O {[%emt 0:00:06]} 6. O-O {[%emt 0:00:04]} dxc4 {[%emt 0:00:06]} 7. Qc2 {[%emt 0:00:10]} a6 {[%emt 0:00:07]} 8. Qxc4 {[%emt 0:00:05]} b5 {[%emt 0:00:05]} 9. Qc2 {[%emt 0:00:05]} Bb7 {[%emt 0:00:04]} 10. Bd2 {[%emt 0:00:54]} Be4 {[%emt 0:00:18]} 11. Qc1 {[%emt 0:00:04]} Bb7 {[%emt 0:00:04]} 12. Qc2 {[%emt 0:00:05]} Be4 {[%emt 0:00:05] The position is equal.} 13. Qc1 {[%emt 0:00:04]} Bb7 {[%emt 0:00:04]} 14. Qc2 {[%emt 0:00:06]} Be4 {[%emt 0:00:46] Not much happened in this game.   Weighted Error Value: White=0.08 (flawless) /Black=0.00 (flawless) .  OK:         	---       	Black=2} 1/2-1/2

[Event "43rd Indian-chT 2023-24"]
[Site "Dharamsala"]
[Date "2024.03.31"]
[Round "4.5"]
[White "Adireddy Arjun"]
[Black "Borkhetariya Devarsh M"]
[Result "1-0"]
[ECO "C42"]
[WhiteElo "2299"]
[BlackElo "1840"]
[Annotator "RC"]
[PlyCount "57"]
[EventDate "2024.03.28"]
[EventType "team-tourn"]
[EventCountry "IND"]
[SourceTitle "playchess.com"]
[Source "ChessBase"]
[SourceQuality "1"]
[TimeControl "5400+30"]

1. e4 {[%emt 0:00:59]} e5 {[%emt 0:00:39]} 2. Nf3 {[%emt 0:00:06]} Nf6 {[%emt 0:00:10]} 3. Nxe5 {[%emt 0:00:07]} Nxe4 {[%emt 0:01:19]} 4. Qe2 {[%emt 0:01:04]} Qe7 {[%emt 0:00:25]} 5. Qxe4 {[%emt 0:00:35]} d6 {[%emt 0:00:16]} 6. d4 {[%emt 0:01:08]} dxe5 {[%emt 0:00:32]} 7. dxe5 {[%emt 0:01:44]} Nc6 {[%emt 0:00:12]} 8. f4 {[%emt 0:19:57]} Bg4 {[%emt 0:00:40]} 9. Be2 {[%emt 0:10:43]} Bxe2 {[%emt 0:16:43]} 10. Qxe2 {[%emt 0:00:09]} Qh4+ {[%emt 0:08:24]} 11. g3 {[%emt 0:02:06]} Qh3 {[%emt 0:00:04]} 12. Be3 {[%emt 0:02:01]} O-O-O {[%emt 0:08:39]} 13. Nd2 {[%emt 0:17:08]} f6 {[%emt 0:06:35]} 14. exf6 {[%emt 0:13:38]} Bb4 {[%emt 0:15:37]} 15. O-O-O {[%emt 0:00:48]} Qe6 {[%emt 0:02:21]} 16. fxg7 {[%emt 0:07:19]} Rhe8 {[%emt 0:02:33]} 17. Nb3 {[%emt 0:01:10]} Qg6 {[%emt 0:08:53]} 18. Rxd8+ {[%emt 0:01:11]} Nxd8 {[%emt 0:00:10]} 19. Qc4 {[%emt 0:02:26]} Qxg7 {[%emt 0:03:32]} 20. Qxb4 {[%emt 0:00:14]} Rxe3 {[%emt 0:00:04]} 21. Re1 {[%emt 0:01:18]} Nc6 {[%emt 0:00:49]} 22. Qd2 {[%emt 0:00:07]} Rxe1+ {[%emt 0:00:10]} 23. Qxe1 {[%emt 0:00:01]} b6 {[%emt 0:00:38]} 24. Qe4 {[%emt 0:00:49]} Ne7 {[%emt 0:01:45]} 25. Qa8+ {[%emt 0:03:32]} Kd7 {[%emt 0:00:01]} 26. Qxa7 {[%emt 0:00:01]} Nc6 {[%emt 0:01:02]} 27. Qa4 {[%emt 0:00:18]} Qe7 {[%emt 0:00:02]} 28. Kb1 {[%emt 0:00:02]} Qe2 {[%emt 0:01:18]} 29. Qxc6+ {[%emt 0:00:07]} 1-0

[Event "43rd Indian-chT 2023-24"]
[Site "Dharamsala"]
[Date "2024.03.31"]
[Round "4.7"]
[White "Pavan Karthikeya Varma Gunturi"]
[Black "Mukund Hemant Agarwal"]
[Result "1/2-1/2"]
[ECO "B30"]
[WhiteElo "1831"]
[BlackElo "2005"]
[Annotator "NA RC"]
[PlyCount "110"]
[EventDate "2024.03.28"]
[EventType "team-tourn"]
[EventCountry "IND"]
[SourceTitle "playchess.com"]
[Source "ChessBase"]
[SourceQuality "1"]
[TimeControl "5400+30"]

1. e4 {[%emt 0:00:07]} c5 {[%emt 0:00:01]} 2. Nc3 {[%emt 0:00:08]} Nc6 {[%emt 0:00:13]} 3. Bb5 {[%emt 0:00:06]} Nd4 {[%emt 0:00:06]} 4. Nf3 {[%emt 0:00:03]} e6 {[%emt 0:00:20]} 5. a4 {[%emt 0:10:50]} a6 {[%emt 0:05:21]} 6. Bc4 {[%emt 0:01:55] B30: Sizilianisch (Rossolimo-Variante).} Nf6 {[%emt 0:00:43]} 7. d3 {[%emt 0:04:47]} d5 {[%emt 0:00:13]} 8. Ba2 {[%emt 0:02:24]} Bd6 {[%emt 0:20:59]} 9. Bd2 {[%emt 0:07:19]} O-O {[%emt 0:02:06]} 10. h3 {[%emt 0:02:16]} Bc7 {[%emt 0:02:36]} (10... dxe4 $15 11. Nxe4 Nxe4 12. dxe4 b5) 11. exd5 {[%emt 0:10:08]} exd5 {[%emt 0:01:03]} 12. Nxd4 {[%emt 0:02:17]} cxd4 {[%emt 0:01:36]} 13. Ne2 {[%emt 0:01:19]} Bd7 {[%emt 0:15:00]} 14. O-O {[%emt 0:03:27]} (14. Bb3 $1 $14) 14... Bb6 {[%emt 0:10:45]} (14... Bxa4 $11 15. Nxd4 Qd6) 15. Bb3 {[%emt 0:02:04]} a5 {[%emt 0:05:40]} 16. Bg5 {[%emt 0:02:31]} (16. Ng3 $16) 16... Be6 {[%emt 0:04:27]} 17. Nf4 {[%emt 0:03:19]} Qd6 {[%emt 0:00:40]} 18. Qf3 {[%emt 0:05:04]} Nd7 {[%emt 0:10:26]} 19. Qg3 {[%emt 0:08:59]} Bd8 {[%emt 0:04:51]} 20. Rfe1 {[%emt 0:11:19]} Bxg5 {[%emt 0:01:07]} 21. Qxg5 {[%emt 0:01:20]} Nf6 {[%emt 0:03:51]} 22. Nh5 {[%emt 0:01:44]} Nxh5 {[%emt 0:00:27]} 23. Qxh5 {[%emt 0:00:27]} Rac8 $14 {[%emt 0:01:40]} 24. Qe5 {[%emt 0:01:25]} Qc5 {[%emt 0:06:10]} 25. Re2 {[%emt 0:02:40]} Rfe8 {[%emt 0:00:53]} 26. Rae1 {[%emt 0:01:01]} Kf8 {[%emt 0:00:45]} 27. Qh5 {[%emt 0:01:07]} h6 {[%emt 0:00:25]} 28. Re5 {[%emt 0:01:15]} Qd6 {[%emt 0:00:19]} 29. Qf3 {[%emt 0:07:53]} Rcd8 {[%emt 0:01:25]} 30. R1e2 {[%emt 0:03:45]} f6 {[%emt 0:00:33]} 31. Rh5 {[%emt 0:00:31]} Bf7 {[%emt 0:00:25]} 32. Rf5 {[%emt 0:00:58]} Rxe2 {[%emt 0:00:28]} 33. Qxe2 {[%emt 0:00:10]} Re8 {[%emt 0:00:02]} 34. Qd2 {[%emt 0:00:50]} b6 {[%emt 0:00:30]} 35. Qf4 {[%emt 0:01:30]} Re1+ {[%emt 0:01:10]} 36. Kh2 {[%emt 0:00:06]} Re5 {[%emt 0:00:26]} 37. g3 {[%emt 0:00:58]} Be6 {[%emt 0:00:30]} 38. Rxe5 {[%emt 0:00:27]} Qxe5 {[%emt 0:00:02]} 39. Qf3 {[%emt 0:00:20]} Ke7 {[%emt 0:00:28]} 40. Kg2 {[%emt 0:00:51]} Kd6 {[%emt 0:00:02]} 41. Qd1 {[%emt 0:00:41]} Qf5 {[%emt 0:00:22]} 42. g4 {[%emt 0:00:24]} Qf4 {[%emt 0:00:57]} 43. c3 {[%emt 0:00:41]} f5 {[%emt 0:00:33]} 44. f3 {[%emt 0:00:27]} fxg4 {[%emt 0:00:55]} 45. fxg4 {[%emt 0:00:21]} g6 {[%emt 0:00:34]} 46. Qe2 {[%emt 0:00:41]} h5 {[%emt 0:00:20]} 47. gxh5 {[%emt 0:00:08]} gxh5 {[%emt 0:00:18]} 48. cxd4 {[%emt 0:00:45]} h4 {[%emt 0:00:15]} 49. Qf3 {[%emt 0:00:39]} Qd2+ {[%emt 0:01:05]} 50. Kg1 {[%emt 0:00:12]} Qe1+ {[%emt 0:00:33]} 51. Kg2 {[%emt 0:00:08]} Qd2+ {[%emt 0:00:10]} 52. Kg1 {[%emt 0:00:06]} Qe1+ {[%emt 0:00:44]} 53. Kg2 {[%emt 0:00:05]} Qd2+ {[%emt 0:00:09]} 54. Kg1 {[%emt 0:00:10]} Qg5+ {[%emt 0:00:32]} 55. Kh2 {[%emt 0:00:09]} Qd2+ {[%emt 0:01:53]} 1/2-1/2

[Event "43rd Indian-chT 2023-24"]
[Site "Dharamsala"]
[Date "2024.03.31"]
[Round "4.8"]
[White "Jihan Tejas Shah"]
[Black "Yohan Yadav Tarala"]
[Result "1-0"]
[ECO "D36"]
[WhiteElo "2016"]
[BlackElo "1746"]
[Annotator "RC"]
[PlyCount "67"]
[EventDate "2024.03.28"]
[EventType "team-tourn"]
[EventCountry "IND"]
[SourceTitle "playchess.com"]
[Source "ChessBase"]
[SourceQuality "1"]
[TimeControl "5400+30"]

1. d4 {[%emt 0:00:08]} d5 {[%emt 0:00:46]} 2. c4 {[%emt 0:00:05]} e6 {[%emt 0:00:44]} 3. Nc3 {[%emt 0:00:05]} Nf6 {[%emt 0:00:05]} 4. cxd5 {[%emt 0:00:05]} exd5 {[%emt 0:00:05]} 5. Bg5 {[%emt 0:00:03]} c6 {[%emt 0:00:12]} 6. e3 {[%emt 0:00:04]} Be7 {[%emt 0:00:04]} 7. Qc2 {[%emt 0:00:32]} O-O {[%emt 0:00:08]} 8. Bd3 {[%emt 0:00:05]} Nbd7 {[%emt 0:00:04]} 9. Nge2 {[%emt 0:00:41]} Re8 {[%emt 0:00:49]} 10. O-O {[%emt 0:00:08]} Nf8 {[%emt 0:00:05]} 11. Rae1 {[%emt 0:01:56]} Be6 {[%emt 0:04:43]} 12. f3 {[%emt 0:02:14]} Rc8 {[%emt 0:02:09]} 13. Kh1 {[%emt 0:01:19]} N6d7 {[%emt 0:12:49]} 14. Bxe7 {[%emt 0:04:30]} Qxe7 {[%emt 0:00:15]} 15. e4 {[%emt 0:07:07]} dxe4 {[%emt 0:03:38]} 16. fxe4 {[%emt 0:00:10]} c5 {[%emt 0:02:29]} 17. d5 {[%emt 0:06:07]} c4 {[%emt 0:16:08]} 18. dxe6 {[%emt 0:00:16]} Nxe6 {[%emt 0:01:37]} 19. Ng3 {[%emt 0:06:15]} cxd3 {[%emt 0:00:50]} 20. Qxd3 {[%emt 0:00:05]} Ne5 {[%emt 0:05:57]} 21. Qe2 {[%emt 0:01:48]} Nc7 {[%emt 0:19:32]} 22. Nf5 {[%emt 0:04:48]} Qe6 {[%emt 0:01:32]} 23. Qe3 {[%emt 0:03:29]} g6 {[%emt 0:19:19]} 24. Qg3 {[%emt 0:04:27]} Kh8 {[%emt 0:02:22]} 25. Nd4 {[%emt 0:02:32]} Qe7 {[%emt 0:01:24]} 26. Nf3 {[%emt 0:00:45]} Nxf3 {[%emt 0:04:00]} 27. Rxf3 {[%emt 0:00:06]} f5 {[%emt 0:01:11]} 28. h3 {[%emt 0:01:43]} fxe4 {[%emt 0:00:43]} 29. Rxe4 {[%emt 0:00:05]} Qd7 {[%emt 0:00:44]} 30. Ref4 {[%emt 0:00:48]} Ne6 {[%emt 0:00:28]} 31. Rf7 {[%emt 0:00:26]} Re7 {[%emt 0:00:21]} 32. Qe5+ {[%emt 0:00:57]} Kg8 {[%emt 0:00:15]} 33. Rxe7 {[%emt 0:00:17]} Qxe7 {[%emt 0:00:04]} 34. Nd5 {[%emt 0:00:19]} 1-0

[Event "43rd Indian-chT 2023-24"]
[Site "Dharamsala"]
[Date "2024.04.01"]
[Round "5.1"]
[White "Borkhetariya Devarsh M"]
[Black "Krishna C R G"]
[Result "0-1"]
[ECO "C01"]
[WhiteElo "1840"]
[BlackElo "2445"]
[Annotator "TA"]
[PlyCount "56"]
[EventDate "2024.03.28"]
[EventType "team-tourn"]
[EventCountry "IND"]
[SourceTitle "playchess.com"]
[Source "ChessBase"]
[SourceQuality "1"]
[TimeControl "5400+30"]

{[%evp 9,56,12,16,14,20,25,17,16,16,14,21,12,18,0,0,0,5,0,0,-59,-64,-168,-160,-147,-143,-137,-147,-273,-195,-362,-361,-356,-354,-535,-535,-498,-425,-593,-545,-710,-627,-614,-578,-29983,-10278,-3066,-1609,-29997,-29998]} 1. e4 {[%emt 0:00:58]} e6 {[%emt 0:00:03]} 2. d4 {[%emt 0:01:06]} d5 {[%emt 0:00:02]} 3. Bd3 {[%emt 0:00:09]} c5 {[%emt 0:00:05]} 4. exd5 {[%emt 0:02:16]} exd5 {[%emt 0:00:04]} 5. Nf3 {[%emt 0:00:11]} c4 {[%emt 0:02:16]} 6. Be2 {[%emt 0:02:34]} Nc6 {[%emt 0:00:07]} 7. b3 {[%emt 0:03:40]} cxb3 {[%emt 0:00:38]} 8. axb3 {[%emt 0:00:04] The position is equal.} Nf6 {[%emt 0:00:44]} 9. O-O {[%emt 0:01:05]} Bd6 {[%emt 0:05:43]} 10. c4 {[%emt 0:02:59]} O-O {[%emt 0:02:08]} 11. Bg5 {[%emt 0:03:16]} h6 {[%emt 0:00:13]} 12. Bxf6 {[%emt 0:13:05]} Qxf6 {[%emt 0:00:07]} 13. Nc3 {[%emt 0:00:53]} Nb4 {[%emt 0:11:07]} 14. c5 {[%emt 0:06:06]} ({White should play} 14. Qd2 $11) 14... Bxc5 $15 {[%emt 0:02:39]} 15. Nxd5 {[%emt 0:21:07]} Nxd5 $19 {[%emt 0:00:22]} 16. dxc5 {[%emt 0:00:03]} Nf4 {[%emt 0:08:34] [#] Strongly threatening ...Rd8.} 17. Ra2 {[%emt 0:03:14]} Bh3 {[%emt 0:12:07][%cal Of8e8] White must now prevent ...Rfe8! Black is more active.} 18. Ne1 {[%emt 0:13:27]} (18. gxh3 $2 {too greedy.} Qg6+ $19) (18. Qd6 $17 Qxd6 (18... Nxg2 19. Qxf6 gxf6 20. Ra4 $11) 19. cxd6 Bxg2 20. Re1) 18... Rad8 {[%emt 0:04:43]} 19. Qb1 {[%emt 0:05:15]} (19. Qc2) 19... Qg5 {[%emt 0:04:39][%cal Rh3g2]} 20. Bf3 {[%emt 0:00:41] [#]} Rfe8 $1 {[%emt 0:00:20]} 21. g3 {[%emt 0:05:15]} (21. Rxa7 $142 Bg4 (21... Qxc5 $2 22. Ra4 $17) 22. h4) 21... Bxf1 {[%emt 0:00:54]} 22. Kxf1 {[%emt 0:00:03]} Nd5 {[%emt 0:02:36] Hoping for ...Nc3.} 23. Rxa7 {[%emt 0:02:35]} Nc3 {[%emt 0:02:48][%csl LRb1,LRc5]} 24. Qa1 {[%emt 0:00:53]} Qxc5 {[%emt 0:02:07] aiming for ...Rd2.} 25. Ra5 {[%emt 0:03:32]} b5 {[%emt 0:03:04]} 26. Qb2 {[%emt 0:06:58]} Nd1 {[%emt 0:01:52]} 27. Qa2 {[%emt 0:00:02]} Qc3 {[%emt 0:00:28]} 28. Nc2 {[%emt 0:01:11]} Qxf3 {[%emt 0:00:11] Weighted Error Value: White=1.07/Black=0.30.  Mistake:       	White=5     	---        Inaccurate:     	White=2     	---        OK:         	White=5     	Black=10     Best:        	---       	Black=1      Strong:       	---       	Black=1} 0-1

[Event "43rd Indian-chT 2023-24"]
[Site "Dharamsala"]
[Date "2024.04.01"]
[Round "5.3"]
[White "Mukund Hemant Agarwal"]
[Black "Ghosh, Diptayan"]
[Result "1/2-1/2"]
[ECO "C92"]
[WhiteElo "2005"]
[BlackElo "2559"]
[Annotator "TA"]
[PlyCount "60"]
[EventDate "2024.03.28"]
[EventType "team-tourn"]
[EventCountry "IND"]
[SourceTitle "playchess.com"]
[Source "ChessBase"]
[SourceQuality "1"]
[TimeControl "5400+30"]

{[%evp 22,60,25,20,34,26,29,22,34,38,36,32,35,1,58,49,57,51,69,49,48,44,126,91,100,67,79,81,131,112,125,127,126,29,123,0,120,0,120,0,149]} 1. e4 {[%emt 0:00:01]} e5 {[%emt 0:00:44]} 2. Nf3 {[%emt 0:00:02]} Nc6 {[%emt 0:00:05]} 3. Bb5 {[%emt 0:00:07][%cal Bf1b5,Bb5a4,Ba4b3][%mdl 32]} a6 {[%emt 0:01:25]} 4. Ba4 {[%emt 0:00:01]} Nf6 {[%emt 0:00:37]} 5. O-O {[%emt 0:00:14]} Be7 {[%emt 0:00:04]} 6. Re1 {[%emt 0:00:19]} b5 {[%emt 0:00:08]} 7. Bb3 {[%emt 0:00:01]} d6 {[%emt 0:00:06]} 8. c3 {[%emt 0:00:01]} O-O {[%emt 0:00:06]} 9. h3 {[%emt 0:00:02]} a5 {[%emt 0:02:27][%cal Ba6a5,Ba5a4][%mdl 32]} 10. d4 {[%emt 0:02:22]} Bd7 {[%emt 0:01:13]} 11. Nbd2 {[%emt 0:02:08][%cal Bb1d2,Bd2f1,Bf1g3][%mdl 32]} a4 {[%emt 0:02:16]} 12. Bc2 {[%emt 0:02:50]} Re8 {[%emt 0:06:01]} 13. Nf1 {[%emt 0:02:54]} h6 {[%emt 0:04:19]} 14. Ng3 {[%emt 0:00:57]} Bf8 {[%emt 0:00:21]} 15. Be3 {[%emt 0:11:22]} Qc8 {[%emt 0:08:23]} 16. Qd2 {[%emt 0:06:17]} Qb7 {[%emt 0:05:22]} 17. Nh4 {[%emt 0:12:04]} b4 {[%emt 0:20:19]} (17... Na5 $11) 18. d5 $14 {[%emt 0:14:52]} bxc3 {[%emt 0:02:54]} 19. bxc3 {[%emt 0:00:41][%cal Oa1b1] [#] Black must now prevent Rab1!} (19. dxc6 cxd2 20. cxb7 dxe1=Q+ (20... dxe1=B 21. bxa8=Q Bxf2+ 22. Bxf2 $16) (20... dxe1=R+ $2 21. Rxe1 Rab8 22. Rb1 $19) 21. Rxe1 Rab8 $19) (19. Qxc3 Ne7 $15) 19... Na5 {[%emt 0:00:20]} 20. Rab1 {[%emt 0:03:08]} Qc8 {[%emt 0:02:18]} 21. Bd3 $36 {[%emt 0:00:53][%mdl 2048] Wards off Nc4. White fights for an advantage.} c5 {[%emt 0:06:37]} (21... c6 $14) 22. Nhf5 {[%emt 0:10:51][%cal Re3h6]} c4 {[%emt 0:06:31]} 23. Bc2 {[%emt 0:00:10]} Nb3 $1 {[%emt 0:10:15]} 24. Qe2 {[%emt 0:13:22]} (24. Bxb3 axb3 25. Nxg7 (25. axb3 Bxf5 26. exf5 Ra5 $16) 25... Kxg7 $11 (25... Bxg7 26. Bxh6 Nh7 27. axb3 $11)) 24... Nc5 {[%emt 0:01:59]} (24... Rb8 $142) 25. Qxc4 {[%emt 0:01:29] White is much more active.} Bxf5 {[%emt 0:03:03]} 26. exf5 {[%emt 0:00:51]} ({Weaker is} 26. Nxf5 Ncxe4 27. Qb4 (27. Qxc8 Rexc8 28. c4 Rxc4 $17) 27... Nxc3 $19 (27... Qxf5 28. f3 $15)) 26... Ra5 {[%emt 0:05:46]} 27. Kh1 {[%emt 0:05:55]} (27. Qb4 $16 Qc7 28. c4) 27... Kh8 {[%emt 0:00:09]} (27... Qa8 $11 {keeps the balance.}) 28. Kg1 {[%emt 0:00:02]} Kg8 $1 {[%emt 0:00:06]} 29. Kh1 {[%emt 0:00:03]} Kh8 {[%emt 0:00:09]} 30. Kg1 {[%emt 0:00:04]} Kg8 $1 {[%emt 0:01:02] Weighted Error Value: White=0.42/Black=0.19 (very precise) .  Mistake:       	White=1     	Black=4      Inaccurate:     	White=2     	---        OK:         	White=5     	Black=6      Best:        	White=1     	---        Strong:       	---       	Black=3} 1/2-1/2

[Event "43rd Indian-chT 2023-24"]
[Site "Dharamsala"]
[Date "2024.04.01"]
[Round "5.4"]
[White "Neelash Saha"]
[Black "Jihan Tejas Shah"]
[Result "1-0"]
[ECO "E71"]
[WhiteElo "2463"]
[BlackElo "2016"]
[Annotator "RC"]
[PlyCount "101"]
[EventDate "2024.03.28"]
[EventType "team-tourn"]
[EventCountry "IND"]
[SourceTitle "playchess.com"]
[Source "ChessBase"]
[SourceQuality "1"]
[TimeControl "5400+30"]

1. d4 {[%emt 0:00:58]} Nf6 {[%emt 0:00:23]} 2. c4 {[%emt 0:00:28]} g6 {[%emt 0:00:20]} 3. Nc3 {[%emt 0:00:51]} Bg7 {[%emt 0:00:04]} 4. e4 {[%emt 0:00:03]} d6 {[%emt 0:00:04]} 5. h3 {[%emt 0:00:03]} O-O {[%emt 0:00:39]} 6. Be3 {[%emt 0:00:05]} e5 {[%emt 0:00:17]} 7. d5 {[%emt 0:00:07]} Na6 {[%emt 0:00:24]} 8. g4 {[%emt 0:00:19]} Nc5 {[%emt 0:01:06]} 9. f3 {[%emt 0:00:05]} a5 {[%emt 0:01:43]} 10. h4 {[%emt 0:02:27]} c6 {[%emt 0:04:56]} 11. h5 {[%emt 0:02:54]} cxd5 {[%emt 0:00:27]} 12. cxd5 {[%emt 0:00:06]} a4 {[%emt 0:06:03]} 13. Qd2 {[%emt 0:04:12]} Qa5 {[%emt 0:01:37]} 14. Nge2 {[%emt 0:06:29]} b5 {[%emt 0:08:32]} 15. Ng3 {[%emt 0:00:18]} Bd7 {[%emt 0:02:22]} 16. g5 {[%emt 0:04:46]} Ne8 {[%emt 0:06:14]} 17. Rc1 {[%emt 0:22:42]} Nc7 {[%emt 0:06:30]} 18. Kf2 {[%emt 0:09:49]} Rfc8 {[%emt 0:06:32]} 19. Kg1 {[%emt 0:02:00]} b4 {[%emt 0:04:18]} 20. Nd1 {[%emt 0:00:05]} Nb5 {[%emt 0:02:15]} 21. hxg6 {[%emt 0:05:51]} hxg6 {[%emt 0:00:27]} 22. Bxb5 {[%emt 0:00:14]} Qxb5 {[%emt 0:01:06]} 23. Nf2 {[%emt 0:00:34]} Rc7 {[%emt 0:06:49]} 24. Nd3 {[%emt 0:10:56]} Rac8 {[%emt 0:06:42]} 25. Nxc5 {[%emt 0:00:09]} dxc5 {[%emt 0:00:06]} 26. Qh2 {[%emt 0:03:24]} c4 {[%emt 0:04:36]} 27. Ne2 {[%emt 0:00:07]} c3 {[%emt 0:04:12]} 28. bxc3 {[%emt 0:00:25]} b3 {[%emt 0:01:34]} 29. axb3 {[%emt 0:02:36]} axb3 {[%emt 0:00:20]} 30. Kf2 {[%emt 0:00:19]} Qa6 {[%emt 0:07:40]} 31. Ra1 {[%emt 0:01:08]} Qd6 {[%emt 0:00:15]} 32. Qh7+ {[%emt 0:02:33]} Kf8 {[%emt 0:00:11]} 33. Rhb1 {[%emt 0:00:05]} Rb7 {[%emt 0:01:44]} 34. Rb2 {[%emt 0:00:22]} Qc7 {[%emt 0:01:18]} 35. f4 {[%emt 0:03:52]} Qc4 {[%emt 0:07:28]} 36. f5 {[%emt 0:03:00]} gxf5 {[%emt 0:00:42]} 37. exf5 {[%emt 0:00:06]} Qd3 {[%emt 0:00:11]} 38. Ng3 {[%emt 0:00:05]} Rxc3 {[%emt 0:01:37]} 39. Ra8+ {[%emt 0:00:27]} Bc8 {[%emt 0:00:07]} 40. Rxc8+ {[%emt 0:00:12]} Rxc8 {[%emt 0:00:11]} 41. Nh5 {[%emt 0:00:02]} Rc2+ {[%emt 0:01:25]} 42. Rxc2 {[%emt 0:00:05]} Qxc2+ {[%emt 0:00:07]} 43. Kg3 {[%emt 0:00:02]} b2 {[%emt 0:01:11]} 44. Qxg7+ {[%emt 0:00:06]} Ke7 {[%emt 0:01:40]} 45. Qxe5+ {[%emt 0:01:13]} Kd8 {[%emt 0:01:12]} 46. Qd6+ {[%emt 0:00:06]} Kc8 {[%emt 0:00:39]} 47. Qf8+ {[%emt 0:00:05]} Kc7 {[%emt 0:00:22]} 48. d6+ {[%emt 0:00:14]} Kc6 {[%emt 0:00:54]} 49. Qc8+ {[%emt 0:00:06]} Kd5 {[%emt 0:00:16]} 50. Qxc2 {[%emt 0:00:21]} b1=Q {[%emt 0:00:08]} 51. Nf6+ {[%emt 0:00:10]} 1-0